lending/lending_fUSD_20251022
["ID","MTS","AMOUNT","RATE_DAILY","PERIOD"]
[392089688,1761146954461,-593.0,0.00043919,7]
[392089689,1761146954485,-474.42,0.00043941,30]
[392089690,1761146954515,-168.0,0.00043943,2]
[392089691,1761146954538,-504.11578564,0.00044,120]
[392089692,1761146954562,-1003000.0,0.00044,10]
[392089693,1761146954589,-1000.0,0.00044,30]
[392089694,1761146954614,-696.1,0.00044041,30]
[392089695,1761146954638,-475.34,0.00044041,30]
[392089696,1761146954663,-696.1,0.00044041,30]
[392089697,1761146954688,-475.34,0.00044041,30]
[392089698,1761146954713,-696.1,0.00044041,30]
[392089699,1761146954737,-475.34,0.00044041,30]
[392089700,1761146954762,-696.1,0.00044041,30]
[392089701,1761146954786,-1000.0,0.00044094,2]
[392089702,1761146954809,-399.55216404,0.00044094,30]
[392089703,1761146954836,-168.0,0.00044226,2]
[392089704,1761146954859,-666.0,0.00044233,20]
[392089705,1761146954883,-619.3068,0.00044258,2]
[392089706,1761146954906,-150.0,0.000443,30]
[392089707,1761146954929,-150.0,0.000443,30]
[392089708,1761146954954,-2319.02336556,0.00044437,15]
[392089709,1761146954984,-151.0,0.00044473,2]
[392089710,1761146955011,-151.0,0.00044473,2]
[392089711,1761146955036,-298.06365025,0.00044473,2]
[392089712,1761146955059,-7590.15468001,0.000445,2]
[392089713,1761146955083,-500.0,0.000445,120]
[392089714,1761146955109,-152.27,0.00044521,2]
[392089715,1761146955133,-729.47908,0.0004455,23]
[392089716,1761146955157,-461.03295294,0.00044777,28]
[392089717,1761146955182,-2012.820641,0.000448,15]
[392089718,1761146955204,-1000.0,0.000448,2]
[392089719,1761146955229,-2500.0,0.000448,2]
[392089720,1761146955252,-40066.8624098,0.00044859,120]
[392089721,1761146955276,-158.0,0.00044877,90]
[392089722,1761146955299,-1620.46748402,0.0004489,17]
[392089723,1761146955325,-54336.3471917,0.0004489,3]
[392089724,1761146955495,-5000.0,0.0004489,120]
[392089725,1761146955523,-500.0,0.00044899,120]
[392089726,1761146955548,-160.56398267,0.000449,20]
[392089727,1761146955572,-297.79558374,0.000449,17]
[392089728,1761146955596,-119406.3799,0.000449,60]
[392089729,1761146955619,-1188.48754904,0.000449,120]
[392089730,1761146955645,-2012.82064095,0.0004495,15]
[392089731,1761146955668,-500.0,0.00044973,10]
[392089732,1761146955691,-500.0,0.00044973,10]
[392089733,1761146955715,-500.73416328,0.00044973,10]
[392089734,1761146955741,-5433.63471917,0.00044979,3]
[392089735,1761146955766,-152141.772137,0.0004498,3]
[392089736,1761146955790,-500.0,0.00044989,2]
[392089737,1761146955813,-1000.0,0.00044989,30]
[392089738,1761146955836,-500.0,0.00044989,120]
[392089739,1761146955859,-500.0,0.00044989,120]
[392089740,1761146955883,-500.0,0.00044989,120]
[392089741,1761146955907,-500.0,0.00044989,120]
[392089743,1761146955930,-581.22513456,0.00044989,120]
[392089744,1761146955955,-500.0,0.00044989,120]
[392089746,1761146955983,-500.0,0.00044989,120]
[392089748,1761146956010,-500.0,0.00044989,120]
[392089749,1761146956036,-176.05440415,0.0004499,7]
[392089750,1761146956061,-150.35,0.0004499,2]
[392089751,1761146956085,-30900.30347022,0.0004499,30]
[392089752,1761146956109,-6000.0,0.00044994,120]
[392089753,1761146956133,-11938.08,0.00044996,120]
[392089754,1761146956158,-150.0,0.00044999,2]
[392089755,1761146956183,-150.0,0.00044999,2]
[392089756,1761146956208,-500.0,0.00044999,2]
[392089757,1761146956234,-1000.0,0.00044999,30]
[392089758,1761146956259,-1000.0,0.00044999,30]
[392089759,1761146956283,-1000.0,0.00044999,30]
[392089760,1761146956308,-1000.0,0.00044999,30]
[392089761,1761146956333,-1000.0,0.00044999,30]
[392089762,1761146956356,-513.44078146,0.00044999,120]
[392089763,1761146956383,-999.0,0.00044999,120]
[392089764,1761146956409,-1000.0,0.00044999,120]
[392089765,1761146956432,-1000.0,0.00044999,120]
[392089766,1761146956456,-1000.0,0.00044999,120]
[392089767,1761146956483,-1000.0,0.00044999,120]
[392089768,1761146956507,-1000.0,0.00044999,120]
[392089769,1761146956531,-1000.0,0.00044999,120]
[392089770,1761146956556,-996.02194638,0.00044999,120]
[392089771,1761146956580,-150.0,0.00044999,2]
[392089772,1761146956604,-150.0,0.00044999,2]
[392089773,1761146956629,-500.0,0.00044999,2]
[392089774,1761146956652,-150.0,0.00044999,2]
[392089775,1761146956677,-150.0,0.00044999,2]
[392089776,1761146956700,-500.0,0.00044999,2]
[392089777,1761146956727,-500.0,0.00044999,2]
[392089778,1761146956751,-152.29441088,0.00044999,2]
[392089779,1761146956774,-500.0,0.00044999,120]
[392089780,1761146956798,-557.0,0.00044999,120]
[392089781,1761146956821,-250.0,0.00044999,120]
[392089782,1761146956846,-250.0,0.00044999,120]
[392089783,1761146956871,-312.61296889,0.00044999,120]
[392089784,1761146956894,-150.0,0.00044999,2]
[392089785,1761146956918,-500.0,0.00044999,2]
[392089786,1761146956942,-150.0,0.00044999,2]
[392089787,1761146956969,-150.0,0.00044999,2]
[392089788,1761146956995,-150.0,0.00044999,2]
[392089789,1761146957022,-150.0,0.00044999,2]
[392089790,1761146957047,-500.0,0.00044999,2]
[392089791,1761146957073,-150.0,0.00044999,2]
[392089792,1761146957097,-500.0,0.00044999,2]
[392089793,1761146957123,-500.0,0.00044999,120]
[392089794,1761146957148,-500.0,0.00044999,120]
[392089795,1761146957173,-500.0,0.00044999,120]
[392089796,1761146957200,-500.0,0.00044999,120]
[392089797,1761146957225,-500.0,0.00044999,120]
[392089798,1761146957249,-150.0,0.00044999,2]
[392089799,1761146957274,-500.0,0.00044999,120]
[392089800,1761146957301,-500.0,0.00044999,120]
[392089801,1761146957326,-527.05525158,0.00044999,120]
[392089802,1761146957350,-500.0,0.00044999,120]
[392089803,1761146957374,-1000.0,0.00044999,120]
[392089804,1761146957399,-1000.0,0.00044999,120]
[392089805,1761146957424,-1000.0,0.00044999,120]
[392089806,1761146957449,-1000.0,0.00044999,120]
[392089807,1761146957475,-1000.0,0.00044999,120]
[392089808,1761146957501,-897376.98010823,0.00045,120]
[392089809,1761146957526,-532.40347783,0.00045,120]
[392089810,1761146957548,-192.08187155,0.00045,120]
[392089811,1761146957573,-6010.0,0.00045,10]
[392089812,1761146957597,-634.35803386,0.00045,120]
[392089813,1761146957620,-23228.98251245,0.00045,2]
[392089846,1761146992837,-150.0,0.00043478,30]
[392089847,1761146992861,-696.1,0.00044041,30]
[392089848,1761146992885,-1387.23,0.000441,30]
[392089849,1761146992908,-1000.0,0.00044199,2]
[392089850,1761146992932,-5000.0,0.0004489,120]
[392089851,1761146992956,-210.6254991,0.00044899,2]
[392089852,1761146992978,-210.62549909,0.000449,2]
[392089853,1761146993005,-119406.3799,0.000449,60]
[392089854,1761146993034,-1000.0,0.00044999,120]
[392089855,1761146993063,-1000.0,0.00044999,120]
[392089856,1761146993089,-1000.0,0.00044999,120]
[392089857,1761146993114,-1000.0,0.00044999,120]
[392089858,1761146993139,-258.96752093,0.00044999,120]
[392089859,1761146993163,-1000.0,0.00044999,120]
[392089860,1761146993188,-1000.0,0.00044999,120]
[392089861,1761146993214,-1000.0,0.00044999,120]
[392089862,1761146993239,-1000.0,0.00044999,120]
[392089863,1761146993263,-1000.0,0.00044999,120]
[392089864,1761146993287,-1000.0,0.00044999,120]
[392089865,1761146993311,-1000.0,0.00044999,120]
[392089866,1761146993336,-1000.0,0.00044999,120]
[392089867,1761146993361,-1000.0,0.00044999,120]
[392089868,1761146993385,-1000.0,0.00044999,120]
[392089869,1761146993412,-1000.0,0.00044999,120]
[392089870,1761146993438,-1000.0,0.00044999,120]
[392089871,1761146993464,-1000.0,0.00044999,120]
[392089872,1761146993489,-1000.0,0.00044999,120]
[392089873,1761146993525,-1000.0,0.00044999,120]
[392089874,1761146993555,-999.0,0.00044999,120]
[392089875,1761146993581,-500.0,0.00044999,2]
[392089876,1761146993606,-153.84660669,0.00044999,2]
[392089877,1761146993632,-500.0,0.00044999,2]
[392089878,1761146993661,-156.945804,0.00044999,120]
[392089879,1761146993688,-156.258713,0.00044999,120]
[392089880,1761146993716,-7150.40237664,0.00045,2]
[392089881,1761146993742,-1617.14924885,0.00045,120]
[392089882,1761146993767,-465.70532106,0.00045,120]
[392089883,1761146993791,-1402.7597901,0.00045,120]
[392089884,1761146993817,-198.37,0.00045,30]
[392089885,1761146993842,-1000.0,0.00045,120]
[392089886,1761146993867,-127429.11798639,0.00045,120]
[392089887,1761146993892,-1000000.0,0.00045,120]
[392089888,1761146993921,-1000.0,0.00045,120]
[392089889,1761146993947,-4095.5462078,0.00045,2]
[392089890,1761146993974,-82831.4364147,0.00045,2]
[392089891,1761146994003,-160.51235,0.00045,30]
[392089892,1761146994028,-152.252612,0.00045,120]
[392089893,1761146994055,-155.446833,0.00045,120]
[392089894,1761146994082,-151.0,0.00045,120]
[392089895,1761146994107,-155.810945,0.00045,120]
[392089896,1761146994132,-154.242662,0.00045,120]
[392089897,1761146994159,-156.786455,0.00045,120]
[392089898,1761146994184,-155.145947,0.00045,120]
[392089899,1761146994210,-216.351168,0.00045,120]
[392089900,1761146994235,-151.392693,0.00045,120]
[392089901,1761146994265,-153.282994,0.00045,120]
[392089902,1761146994515,-151.0,0.00045,120]
[392089903,1761146994540,-151.0,0.00045,120]
[392089904,1761146994565,-151.0,0.00045,120]
[392089905,1761146994591,-156.090513,0.00045,120]
[392089906,1761146994615,-152.767338,0.00045,120]
[392089907,1761146994639,-153.513075,0.00045,120]
[392089908,1761146994663,-154.164547,0.00045,120]
[392089909,1761146994689,-151.0,0.00045,120]
[392089910,1761146994713,-151.0,0.00045,120]
[392089911,1761146994737,-151.0,0.00045,120]
[392089912,1761146994761,-151.0,0.00045,120]
[392089913,1761146994786,-151.0,0.00045,120]
[392089914,1761146994811,-158.211447,0.00045,120]
[392089915,1761146994835,-299.948754,0.00045,120]
[392089916,1761146994864,-153.156574,0.00045,120]
[392089917,1761146994888,-154.012218,0.00045,120]
[392089918,1761146994915,-151.411643,0.00045,120]
[392089919,1761146994941,-179.93536887,0.00045,2]
[392089920,1761146994966,-6345.0,0.00045,7]
[392089921,1761146994993,-151.0,0.00045,120]
[392089922,1761146995022,-22841.6624886,0.00045,2]
[392089923,1761146995048,-153.566723,0.00045,120]
[392089924,1761146995082,-151.0,0.00045,120]
[392089925,1761146995109,-165.84065,0.00045,120]
[392089926,1761146995135,-157.245453,0.00045,120]
[392089927,1761146995160,-151.078084,0.00045,5]
[392089928,1761146995186,-474.89951,0.00045,120]
[392089929,1761146995209,-474.89951,0.00045,120]
[392089930,1761146995234,-474.89951,0.00045,120]
[392089931,1761146995261,-474.89951,0.00045,120]
[392089932,1761146995287,-474.89951,0.00045,120]
[392089933,1761146995317,-474.89951,0.00045,120]
[392089934,1761146995341,-474.89951,0.00045,120]
[392089935,1761146995366,-474.89951,0.00045,120]
[392089936,1761146995392,-151.0,0.00045,120]
[392089937,1761146995417,-159.013359,0.00045,120]
[392089938,1761146995441,-500.0,0.00045,120]
[392089939,1761146995466,-151.0,0.00045,120]
[392089940,1761146995491,-151.0,0.00045,120]
[392089941,1761146995516,-155.55942,0.00045,120]
[392089942,1761146995540,-158.283436,0.00045,120]
[392089943,1761146995566,-155.045588,0.00045,120]
[392089944,1761146995593,-245.644204,0.00045,30]
[392089945,1761146995620,-245.644204,0.00045,30]
[392089946,1761146995646,-245.644204,0.00045,30]
[392089947,1761146995673,-245.644204,0.00045,30]
[392089948,1761146995699,-245.644204,0.00045,30]
[392089949,1761146995723,-245.644204,0.00045,30]
[392089950,1761146995747,-245.644204,0.00045,30]
[392089951,1761146995776,-245.644204,0.00045,30]
[392089952,1761146995799,-151.000009,0.00045,120]
[392089953,1761146995827,-151.0,0.00045,120]
[392089954,1761146995851,-154.579708,0.00045,120]
[392089955,1761146995875,-155.243289,0.00045,120]
[392089956,1761146995899,-153.722534,0.00045,120]
[392089957,1761146995923,-154.116506,0.00045,120]
[392089958,1761146995948,-250.138654,0.00045,120]
[392089959,1761146995972,-1642.58,0.00045,14]
[392089960,1761146996171,300.0,0.00045,5]
[392089961,1761146996217,300.0,0.00045,5]
[392089962,1761146996305,300.0,0.00045,5]
[392089963,1761146996359,317.335403,0.00045,5]
[392089964,1761146996395,6554.47,0.00044084,37]
[392089965,1761146996424,10000.0,0.00018,2]
[392089966,1761146996460,210.62549909,0.000449,2]
[392089975,1761147005541,150.0,0.00035677,2]
[392089976,1761147009163,20.3998814,0.00031,120]
[392089977,1761147009186,152.6001186,0.00031,120]
[392089998,1761147019450,827.3998814,0.000417,120]
[392090012,1761147022974,177.0,0.00031,120]
[392090082,1761147031670,-150.92,0.00035677,2]
[392090083,1761147031681,-158.20169034,0.00035677,30]
[392090084,1761147031691,-200.0,0.00035677,120]
[392090085,1761147031701,-177.69801775,0.00035677,14]
[392090086,1761147031739,-630.31,0.00035677,14]
[392090088,1761147031923,-5203.99198225,0.00035677,14]
[392090089,1761147031934,-4100.44393757,0.00035677,2]
[392090090,1761147031945,-1028.6001186,0.000417,120]
[392090091,1761147031955,-1000.0,0.00044999,120]
[392090092,1761147031967,-1000.0,0.00044999,120]
[392090093,1761147031979,-1000.0,0.00044999,120]
[392090094,1761147031994,-1000.0,0.00044999,120]
[392090096,1761147032004,-1000.0,0.00044999,120]
[392090098,1761147032014,-1000.0,0.00044999,120]
[392090100,1761147032025,-1000.0,0.00044999,120]
[392090102,1761147032037,-1000.0,0.00044999,120]
[392090104,1761147032047,-1000.0,0.00044999,120]
[392090106,1761147032057,-200.0,0.00044999,30]
[392090108,1761147032068,-1000.0,0.00044999,120]
[392090110,1761147032078,-207.4,0.00044999,30]
[392090112,1761147032088,-1000.0,0.00044999,120]
[392090114,1761147032098,-304.39443164,0.00044999,30]
[392090116,1761147032108,-1000.0,0.00044999,120]
[392090118,1761147032118,-1000.0,0.00044999,120]
[392090120,1761147032132,-1000.0,0.00044999,120]
[392090122,1761147032142,-1000.0,0.00044999,120]
[392090125,1761147032152,-1000.0,0.00044999,120]
[392090127,1761147032162,-1000.0,0.00044999,120]
[392090128,1761147032171,-1000.0,0.00044999,120]
[392090132,1761147032379,-1000.0,0.00044999,120]
[392090133,1761147032390,-1000.0,0.00044999,120]
[392090134,1761147032399,-11998.2837787,0.00045,2]
[392090135,1761147032410,-686.89,0.00045001,2]
[392090136,1761147032419,-2319.02336556,0.00045008,15]
[392090137,1761147032429,-202.87028618,0.00045054,2]
[392090138,1761147032439,-150.0,0.00045054,2]
[392090139,1761147032449,-500.0,0.00045054,2]
[392090140,1761147032462,-179.31213936,0.00045054,2]
[392090141,1761147032472,-500.0,0.00045054,2]
[392090142,1761147032482,-500.0,0.00045054,2]
[392090143,1761147032492,-150.0,0.00045054,2]
[392090144,1761147032502,-500.0,0.00045054,2]
[392090145,1761147032512,-150.0,0.00045054,2]
[392090146,1761147032522,-165.94026784,0.00045054,2]
[392090147,1761147032534,-600.0,0.00045054,2]
[392090148,1761147032544,-500.0,0.00045054,2]
[392090149,1761147032554,-150.0,0.00045054,2]
[392090150,1761147032564,-500.0,0.00045054,2]
[392090151,1761147032574,-500.0,0.00045054,2]
[392090152,1761147032584,-2012.82064095,0.000451,15]
[392090153,1761147032594,-150.0,0.00045109,2]
[392090154,1761147032604,-500.0,0.00045109,2]
[392090155,1761147032613,-500.0,0.00045109,2]
[392090156,1761147032623,-500.0,0.00045109,2]
[392090157,1761147032632,-150.0,0.00045109,2]
[392090158,1761147032642,-500.0,0.00045109,2]
[392090159,1761147032652,-150.0,0.00045109,2]
[392090160,1761147032666,-500.0,0.00045109,2]
[392090161,1761147032677,-150.0,0.00045109,2]
[392090162,1761147032687,-500.0,0.00045109,2]
[392090163,1761147032697,-500.0,0.00045109,2]
[392090164,1761147032707,-163.76,0.0004512,2]
[392090165,1761147032718,-461.03295291,0.00045152,28]
[392090166,1761147032728,-471.0,0.00045163,2]
[392090167,1761147032738,-500.0,0.00045163,2]
[392090168,1761147032747,-500.0,0.00045163,2]
[392090169,1761147032757,-200.0,0.00045163,2]
[392090170,1761147032767,-500.0,0.00045163,2]
[392090171,1761147032779,-258.28035432,0.00045163,2]
[392090172,1761147032791,-500.0,0.00045163,2]
[392090173,1761147032802,-150.0,0.00045163,2]
[392090174,1761147032812,-250.0,0.00045163,2]
[392090175,1761147032822,-500.0,0.00045163,2]
[392090176,1761147032832,-1756.5327035,0.0004518,90]
[392090177,1761147032842,-514.30865827,0.00045218,2]
[392090178,1761147032851,-389.79605905,0.00045218,2]
[392090179,1761147032861,-500.0,0.00045218,2]
[392090180,1761147032875,-500.0,0.00045218,2]
[392090181,1761147032885,-200.0,0.00045218,2]
[392090182,1761147032894,-500.0,0.00045218,2]
[392090183,1761147032904,-2012.82064095,0.0004525,15]
[392090184,1761147032914,-500.0,0.00045273,2]
[392090185,1761147032924,-171.9602,0.00045273,2]
[392090186,1761147032934,-500.0,0.00045328,2]
[392090187,1761147032944,-500.0,0.00045383,2]
[392090188,1761147032954,-270.0,0.00045399,120]
[392090189,1761147032964,-150.0,0.000454,19]
[392090190,1761147032973,-150.0,0.000454,19]
[392090191,1761147032986,-150.0,0.000454,19]
[392090192,1761147032995,-500.0,0.000454,19]
[392090193,1761147033005,-150.0,0.000454,19]
[392090194,1761147033015,-150.0,0.000454,19]
[392090195,1761147033026,-150.0,0.000454,19]
[392090196,1761147033038,-150.0,0.000454,19]
[392090197,1761147033048,-183.9,0.000454,17]
[392090198,1761147033059,-2012.82064095,0.000454,15]
[392090199,1761147033071,-297.79558371,0.00045437,19]
[392090200,1761147033086,-500.0,0.00045437,2]
[392090201,1761147033096,-150.0,0.00045455,19]
[392090202,1761147033106,-150.0,0.00045455,19]
[392090203,1761147033116,-150.0,0.00045455,19]
[392090204,1761147033126,-500.0,0.00045455,19]
[392090205,1761147033136,-150.0,0.00045455,19]
[392090206,1761147033145,-251.61,0.0004547,120]
[392090207,1761147033155,-151.0,0.00045479,120]
[392090208,1761147033165,-151.0,0.00045479,120]
[392090209,1761147033175,-474.89951,0.00045479,120]
[392090210,1761147033185,-474.89951,0.00045479,120]
[392090211,1761147033194,-474.89951,0.00045479,120]
[392090212,1761147033204,-474.89951,0.00045479,120]
[392090213,1761147033214,-245.644204,0.00045479,30]
[392090214,1761147033224,-245.644204,0.00045479,30]
[392090215,1761147033234,-245.644204,0.00045479,30]
[392090216,1761147033243,-245.644204,0.00045479,30]
[392090217,1761147033253,-131851.0,0.00045479,120]
[392090218,1761147033263,-150.5,0.0004548,120]
[392090219,1761147033272,-150.5,0.0004549,120]
[392090220,1761147033283,-150.35,0.0004549,2]
[392090221,1761147033293,-500.0,0.00045492,2]
[392090222,1761147033303,-103184.42295088,0.000455,120]
[392090227,1761147037620,-647.61572968,0.00045,120]
[392090228,1761147037682,-96.60824066,0.00045,120]
[392090229,1761147037735,-9964.98818018,0.00045,120]
[392090230,1761147037746,-10079.60806392,0.00045,120]
[392090231,1761147037758,-1026.51022768,0.00045,120]
[392090232,1761147037769,-3646.8226453,0.00045,120]
[392090233,1761147037891,-649.60896,0.00045,120]
[392090235,1761147037903,-10915.0791688,0.00045,120]
[392090236,1761147037915,-248378.69057512,0.00045,120]
[392090270,1761147039918,-2169.43714985,0.00045,120]
[392090282,1761147042768,-21566.0,0.00044759,2]
[392090283,1761147042779,-44450.15,0.00044759,2]
[392090284,1761147042791,-158607.95112337,0.00045,120]
[392090286,1761147043188,-45295.49247203,0.00045,120]
[392090290,1761147045730,-207131.40013538,0.00045,120]
[392090291,1761147045776,-1931.71270266,0.00045,120]
[392090292,1761147046106,-5833.17005057,0.00045,120]
[392090293,1761147046117,-10122.48833187,0.00045,120]
[392090294,1761147046133,-540.9798,0.00045,120]
[392090295,1761147046173,-279.52766823,0.00045,120]
[392090298,1761147052581,160.0,0.00041,90]
[392090309,1761147090431,643.0,0.00041518,2]
[392090526,1761147959140,-177.62097763,0.00030899,2]
[392090534,1761148036085,-422.71079259,0.00030799,2]
[392090543,1761148091866,156.0,0.000273,120]
[392090549,1761148148091,-705.15112627,0.00030799,2]
[392090550,1761148148112,-7197.6876558,0.00030799,2]
[392090551,1761148148134,-222.37902237,0.00030899,2]
[392090552,1761148148158,-300.0,0.00030899,2]
[392090553,1761148148180,-1600.0,0.00030899,2]
[392090554,1761148148202,-170.0,0.00031,120]
[392090556,1761148148225,-336.165,0.00031,28]
[392090557,1761148148246,-265.0,0.00033271,3]
[392090558,1761148148267,-2240.0,0.00033411,3]
[392090559,1761148148289,-838.51517449,0.00034842,2]
[392090560,1761148149076,-574.0363132,0.00034842,2]
[392090561,1761148150084,-2672.09502516,0.00034842,2]
[392090562,1761148150108,-373.4087,0.00035577,2]
[392090563,1761148150129,-559.39,0.00035594,2]
[392090564,1761148150152,-6782.52,0.00035594,2]
[392090565,1761148150174,-197.26721045,0.00035616,2]
[392090566,1761148150197,-218.02177704,0.00035633,120]
[392090567,1761148150219,-911.0,0.00036127,3]
[392090568,1761148150239,-600.0,0.00038218,30]
[392090569,1761148150260,-1372.21764843,0.00039,14]
[392090570,1761148155090,-381.25866984,0.00039,14]
[392090571,1761148155111,-150.0,0.00041,30]
[392090572,1761148155132,-178.976435,0.00041303,2]
[392090573,1761148156107,-71.023565,0.00041303,2]
[392090574,1761148156131,-166.66,0.00041543,30]
[392090575,1761148156153,-161.0,0.00041618,120]
[392090576,1761148156175,-1811.62,0.00041638,120]
[392090577,1761148156204,-745.17780146,0.0004168,2]
[392090578,1761148167099,-511.06034029,0.00041241,2]
[392090579,1761148167122,-2790.84346507,0.0004168,2]
[392090580,1761148167143,-56.5078408,0.00042107,2]
[392090607,1761148231920,-200.0,0.00035594,120]
[392090608,1761148231931,-94.4021592,0.00042107,2]
[392090609,1761148231940,-166.66,0.00042418,30]
[392090610,1761148231950,-1157.40141824,0.0004266,2]
[392090611,1761148231962,-2465.12484,0.0004266,2]
[392090612,1761148231975,-1789.81996262,0.0004266,2]
[392090613,1761148231985,-300.0,0.00042999,4]
[392090614,1761148231995,-1379.70218738,0.00043,120]
[392090615,1761148232044,-460.51348595,0.00043,120]
[392090616,1761148232055,-1487.52828321,0.00043,120]
[392090617,1761148232080,-6672.25604346,0.00043,120]
[392090618,1761148232091,-363.39892837,0.00043,120]
[392090619,1761148232103,-112.53242398,0.00043,120]
[392090620,1761148232114,-791.58086384,0.00043,120]
[392090621,1761148232126,-259.69942639,0.00043,120]
[392090622,1761148232138,-296.30613985,0.00043,120]
[392090623,1761148232150,-7848.92671506,0.00043,120]
[392090624,1761148232162,-573.37169883,0.00043,120]
[392090625,1761148232174,-230.11515603,0.00043,120]
[392090626,1761148232184,-336.28484433,0.00043,2]
[392090627,1761148232196,-57.71515567,0.00043,2]
[392090628,1761148232207,-166.66,0.00043293,30]
[392090629,1761148232217,-294.19,0.00043344,120]
[392090630,1761148232227,-127.65102692,0.00043385,2]
[392090631,1761148232239,-242.62277479,0.00043385,2]
[392090632,1761148232248,-250.0,0.00043486,7]
[392090633,1761148232259,-10000.0,0.00043567,120]
[392090634,1761148232272,-10000.0,0.00043567,120]
[392090635,1761148232282,-385.04,0.00043576,2]
[392090636,1761148232298,-153.0,0.00043713,90]
[392090637,1761148232308,-153.0,0.00043713,90]
[392090638,1761148232319,-153.0,0.00043713,90]
[392090639,1761148232332,-153.0,0.00043713,90]
[392090640,1761148232342,-153.0,0.00043713,90]
[392090641,1761148232352,-153.0,0.00043713,90]
[392090642,1761148232362,-153.0,0.00043713,90]
[392090643,1761148232373,-153.0,0.00043713,90]
[392090644,1761148232383,-153.0,0.00043713,90]
[392090645,1761148232393,-153.0,0.00043713,90]
[392090646,1761148232403,-153.0,0.00043713,90]
[392090647,1761148232413,-1371.9,0.00043749,2]
[392090648,1761148232423,-1000.7156,0.0004393,2]
[392090649,1761148232433,-180.4704,0.0004393,2]
[392090650,1761148232443,-475.34,0.00043941,30]
[392090651,1761148232452,-696.1,0.00043941,30]
[392090652,1761148232462,-475.34,0.00043941,30]
[392090653,1761148232475,-696.1,0.00043941,30]
[392090654,1761148232485,-475.34,0.00043941,30]
[392090655,1761148232495,-696.1,0.00043941,30]
[392090656,1761148232505,-475.34,0.00043941,30]
[392090657,1761148232514,-696.1,0.00043941,30]
[392090658,1761148232524,-475.34,0.00043941,30]
[392090659,1761148232535,-475.34,0.00043941,30]
[392090660,1761148232549,-696.1,0.00043941,30]
[392090661,1761148232559,-696.1,0.00043941,30]
[392090662,1761148232569,-475.34,0.00043941,30]
[392090663,1761148232579,-1000.0,0.00044,120]
[392090664,1761148232589,-1000.0,0.00044,30]
[392090665,1761148232599,-1081.3146,0.00044,20]
[392090666,1761148232609,-20668.21981083,0.0004403,120]
[392090667,1761148232622,-512.25234728,0.0004403,120]
[392090668,1761148232634,-368.63773204,0.0004403,120]
[392090669,1761148232715,-33957.28679478,0.0004403,120]
[392090670,1761148232728,-675.0,0.0004403,120]
[392090671,1761148232740,-2107.37240693,0.0004403,120]
[392090672,1761148232753,-371.15250787,0.0004403,120]
[392090673,1761148232765,-12121.62217747,0.0004403,120]
[392090674,1761148232775,-158.33687736,0.0004403,30]
[392090675,1761148232785,-179.42,0.00044041,30]
[392090676,1761148232799,-327.32,0.00044078,30]
[392090677,1761148232809,-150.0,0.00044078,30]
[392090678,1761148232820,-167.84,0.00044078,30]
[392090679,1761148232830,-10000.0,0.00044133,120]
[392090680,1761148232840,-10000.0,0.00044133,120]
[392090681,1761148232850,-166.66,0.00044167,30]